bitfinex/quotes_BTCUSD_20260127
["timestamp","ask_amount","ask_price","bid_price","bid_amount"]
[1769508180572,0.42957203,87987.0,87976.0,0.04542241]
[1769508180573,0.02778097,87986.0,87976.0,0.04542241]
[1769508180805,0.02778097,87986.0,87978.0,0.01136647]
[1769508181617,0.02778097,87986.0,87978.0,0.06819876]
[1769508181838,0.02623723,87986.0,87979.0,0.01136634]
[1769508182016,0.02623723,87986.0,87980.0,0.01136621]
[1769508182488,0.02600997,87986.0,87980.0,0.01136621]
[1769508183339,0.02600997,87986.0,87980.0,0.0681972]
[1769508183552,0.02600997,87986.0,87981.0,0.01136609]
[1769508184112,0.02600997,87986.0,87980.0,0.01136621]
[1769508184312,0.02600997,87986.0,87979.0,0.01136634]
[1769508184524,0.02600997,87986.0,87980.0,0.01136621]
[1769508186056,0.02600997,87986.0,87980.0,0.06819728]
[1769508186300,0.02600997,87986.0,87980.0,0.01136621]
[1769508187194,0.00154374,87990.0,87980.0,0.01136621]
[1769508187403,0.0001797,87993.0,87989.0,0.01136505]
[1769508187609,0.0001797,87993.0,87990.0,0.06818948]
[1769508187829,0.0001797,87993.0,87980.0,0.0568307]
[1769508188051,0.4533187,87988.0,87981.0,0.01136609]
[1769508188267,0.34883557,87990.0,87970.0,0.33883557]
[1769508188268,0.42957203,87986.0,87977.0,0.0113666]
[1769508188485,0.02374667,87985.0,87979.0,0.01136634]
[1769508188685,0.02374667,87985.0,87979.0,0.06819797]
[1769508188898,0.02374667,87985.0,87979.0,0.01136634]
[1769508189115,0.02374667,87985.0,87978.0,0.01136647]
[1769508189328,0.02374667,87985.0,87976.0,0.06820003]
[1769508189533,0.02374667,87985.0,87978.0,0.06819838]
[1769508189969,0.02374667,87985.0,87979.0,0.01136634]
[1769508190181,0.02374667,87985.0,87978.0,0.06819838]
[1769508190387,0.02374667,87985.0,87979.0,0.01136634]
[1769508190626,0.02374667,87985.0,87980.0,0.01136621]
[1769508191015,0.02374667,87985.0,87981.0,0.01136609]
[1769508191233,0.02374667,87985.0,87981.0,0.06819614]
[1769508191445,0.02374667,87985.0,87982.0,0.01136596]
[1769508191909,0.02374667,87985.0,87981.0,0.06819614]
[1769508192090,0.02374667,87985.0,87980.0,0.01136621]
[1769508192351,0.02374667,87985.0,87970.0,0.99952543]
[1769508192352,0.02374667,87985.0,87970.0,0.7721752]
[1769508192567,0.02374667,87985.0,87977.0,0.0568328]
[1769508192987,0.02374667,87985.0,87979.0,0.06819786]
[1769508193211,0.02374667,87985.0,87980.0,0.01136621]
[1769508193644,0.02529041,87990.0,87980.0,0.01136621]
[1769508193827,0.02529041,87990.0,87979.0,0.01136634]
[1769508195488,0.02529041,87990.0,87980.0,0.01136621]
[1769508195917,0.0001797,87993.0,87984.0,0.0113657]
[1769508196122,0.0001797,87993.0,87986.0,0.01136544]
[1769508196357,0.0001797,87993.0,87983.0,0.01136583]
[1769508196562,0.0001797,87993.0,87984.0,0.0113657]
[1769508197027,0.0001797,87993.0,87984.0,0.01380277]
[1769508198479,0.0001797,87993.0,87985.0,0.06819338]
[1769508198679,0.0001797,87993.0,87984.0,0.0113657]
[1769508198857,0.0001797,87993.0,87984.0,0.01380268]
[1769508199435,0.0001797,87993.0,87984.0,0.00243698]
[1769508199647,0.4534984,87993.0,87980.0,0.01136621]
[1769508199858,0.00154374,87992.0,87979.0,0.06819755]
[1769508200067,0.42957203,87991.0,87979.0,0.06819755]
[1769508200246,0.00154374,87990.0,87979.0,0.06819755]
[1769508200446,0.00154374,87990.0,87980.0,0.06819709]
[1769508200603,0.00154374,87990.0,87981.0,0.06819622]
[1769508202650,0.43838456,87989.0,87981.0,0.01136609]
[1769508202847,0.46170903,87989.0,87982.0,0.01136596]
[1769508203173,0.43838456,87988.0,87983.0,0.01136583]
[1769508203403,0.46170903,87986.0,87983.0,0.01136583]
[1769508203605,0.46170903,87986.0,87982.0,0.01136596]
[1769508203902,0.46170903,87986.0,87981.0,0.06819625]
[1769508204276,0.46170903,87986.0,87982.0,0.01136596]
[1769508204756,0.46170903,87986.0,87983.0,0.01136583]
[1769508205181,0.0001797,87993.0,87983.0,0.01136583]
[1769508205182,0.0001797,87993.0,87984.0,0.0568282]
[1769508205398,0.02351908,88011.0,87995.0,0.01136428]
[1769508205606,0.0004,88019.0,87995.0,0.01136428]
[1769508205607,0.0004,88019.0,87999.0,0.05681841]
[1769508205819,0.01,87999.0,87987.0,0.01136531]
[1769508206037,0.41966862,87996.0,87992.0,0.05682329]
[1769508206249,0.01,87999.0,87992.0,0.05682329]
[1769508206250,0.4431877,87994.0,87993.0,0.05905903]
[1769508206666,0.4431877,87994.0,87993.0,0.03628442]
[1769508206873,0.02351908,87994.0,87993.0,0.01349843]
[1769508207130,0.0001325,87998.0,87995.0,0.01136428]
[1769508207293,0.0001865,88010.0,88004.0,0.01136311]
[1769508207294,0.02370558,88010.0,88004.0,0.01136311]
[1769508207502,0.02370558,88010.0,88005.0,0.01136299]
[1769508207713,0.02370558,88010.0,88003.0,0.01136324]
[1769508207926,0.0001865,88010.0,88008.0,0.1204539]
[1769508208137,0.0001865,88010.0,88008.0,0.12045379]
[1769508208348,0.0001865,88010.0,88001.0,0.22726766]
[1769508208349,0.0001865,88010.0,88000.0,0.01136363]
[1769508208560,0.41966862,88007.0,88004.0,0.06364106]
[1769508208731,0.4431877,88007.0,88004.0,0.06364106]
[1769508209151,0.4431877,88007.0,88004.0,0.07500417]
[1769508209557,0.4431877,88007.0,88004.0,0.06364106]
[1769508210118,0.4431877,88007.0,88004.0,0.05364106]
[1769508213553,0.41966862,88007.0,87993.0,0.01136454]
[1769508213753,0.02351908,88003.0,87998.0,0.06364106]
[1769508213960,0.41966862,88001.0,87994.0,0.01136441]
[1769508214171,0.4431877,88001.0,87993.0,0.01136454]
[1769508214376,0.4431877,88001.0,87995.0,0.01136428]
[1769508214578,0.41966862,88001.0,87996.0,0.01136415]
[1769508214784,0.02351908,88000.0,87998.0,0.06818376]
[1769508215036,0.41966862,87999.0,87998.0,0.06818376]
[1769508215207,0.4431877,87999.0,87998.0,0.06818376]
[1769508215897,0.33888186,88010.0,87998.0,0.06818376]
[1769508216112,0.02351908,88008.0,87999.0,0.02136376]
[1769508216299,0.44473144,88007.0,87999.0,0.01136376]
[1769508216521,0.4431877,88007.0,87998.0,0.06818376]
[1769508216730,0.42121236,88006.0,87998.0,0.06818376]
[1769508216935,0.4431877,88006.0,87998.0,0.06818376]
[1769508217137,0.4431877,88006.0,87998.0,0.07954765]
[1769508217548,0.4431877,88006.0,87998.0,0.01136389]
[1769508217771,0.4431877,88006.0,87996.0,0.01136415]
[1769508217914,0.00154374,88005.0,87997.0,0.01136402]
[1769508218145,0.42121236,88005.0,87997.0,0.01136402]
[1769508218340,0.41966862,88005.0,87996.0,0.01136415]
[1769508218553,0.41966862,88003.0,87992.0,0.01136466]
[1769508218917,0.02351908,87998.0,87992.0,0.01136466]
[1769508219121,0.4431877,87998.0,87992.0,0.01136466]
[1769508219465,0.4431877,87998.0,87993.0,0.01136454]
[1769508219693,0.4431877,87998.0,87991.0,0.01136479]
[1769508220027,0.4431877,87998.0,87993.0,0.01136454]
[1769508220231,0.4431877,87998.0,87992.0,0.06818788]
[1769508220472,0.4431877,87998.0,87993.0,0.05682233]
[1769508221019,0.4431877,87998.0,87994.0,0.0681864]
[1769508221403,0.4431877,87998.0,87994.0,0.01136441]
[1769508221732,0.4431877,87998.0,87992.0,0.06818691]
[1769508221935,0.4431877,87998.0,87992.0,0.01136466]
[1769508222484,0.4431877,87998.0,87991.0,0.01136479]
[1769508223534,0.4431877,87998.0,87990.0,0.01136492]
[1769508223728,0.41966862,87998.0,87988.0,0.01136518]
[1769508223929,0.41966862,87996.0,87989.0,0.05682502]
[1769508224539,0.41966862,87996.0,87989.0,0.06819007]
[1769508224749,0.41966862,87996.0,87990.0,0.06818943]
[1769508225081,0.02351908,87999.0,87995.0,0.06818376]
[1769508225398,0.4431877,87999.0,87996.0,0.01136415]
[1769508225588,0.4431877,87999.0,87996.0,0.06818475]
[1769508225997,0.4431877,87999.0,87997.0,0.05681987]
[1769508227200,0.4431877,87999.0,87996.0,0.01136415]
[1769508227602,0.4431877,87999.0,87996.0,0.06818468]
[1769508227812,0.4431877,87999.0,87995.0,0.06818376]
[1769508228013,0.4431877,87999.0,87995.0,0.07954804]
[1769508228328,0.4431877,87999.0,87996.0,0.06818491]
[1769508228529,0.4431877,87999.0,87996.0,0.01136415]
[1769508228770,0.4431877,87999.0,87996.0,0.07954791]
[1769508228975,0.4431877,87999.0,87996.0,0.13636842]
[1769508229347,0.4431877,87999.0,87996.0,0.06818466]
[1769508229559,0.4431877,87999.0,87996.0,0.01136415]
[1769508230319,0.41966862,87999.0,87996.0,0.01136415]
[1769508230945,0.02351908,88004.0,87996.0,0.01136415]
[1769508231125,0.00154374,88003.0,87996.0,0.01136415]
[1769508231325,0.00154374,88003.0,87997.0,0.01136402]
[1769508231851,0.00154374,88003.0,87996.0,0.06818474]
[1769508231852,0.00154374,88003.0,87996.0,0.01136415]
[1769508232461,0.00154374,88003.0,87997.0,0.01136402]
[1769508232631,0.00154374,88003.0,87997.0,0.06818379]
[1769508232828,0.00154374,88003.0,87997.0,0.01136402]
[1769508233028,0.00154374,88003.0,87996.0,0.01136415]
[1769508233713,0.41966862,88002.0,87992.0,0.06818793]
[1769508233927,0.00154374,88001.0,87993.0,0.01136454]
[1769508234133,0.02351908,88004.0,87992.0,0.06818793]
[1769508234134,0.41966862,88000.0,87992.0,0.06818793]
[1769508234344,0.00154374,87999.0,87992.0,0.06818793]
[1769508234618,0.00154374,87999.0,87994.0,0.01136441]
[1769508234786,0.39825362,87998.0,87994.0,0.01136441]
[1769508235305,0.39825362,87998.0,87992.0,0.01136466]
[1769508235485,0.39825362,87998.0,87992.0,0.06818746]
[1769508235890,0.39825362,87998.0,87993.0,0.06818715]
[1769508236364,0.39825362,87998.0,87993.0,0.01136454]
[1769508237431,0.39825362,87998.0,87994.0,0.01136441]
[1769508237668,0.39825362,87998.0,87993.0,0.06818686]
[1769508238116,0.39825362,87998.0,87993.0,0.01136454]
[1769508238281,0.39825362,87998.0,87992.0,0.06818791]
[1769508238504,0.39825362,87998.0,87993.0,0.01136454]
[1769508239047,0.39825362,87998.0,87995.0,0.06818376]
[1769508239263,0.39825362,87998.0,87993.0,0.01136454]
[1769508239933,0.39825362,87998.0,87994.0,0.01136441]
[1769508240144,0.39825362,87998.0,87995.0,0.01136428]
[1769508240355,0.39825362,87998.0,87994.0,0.01136441]
[1769508241728,0.39825362,88003.0,87994.0,0.01136441]
[1769508241934,0.39979736,88002.0,87992.0,0.01136466]
[1769508242143,0.02447542,88001.0,87988.0,0.01136518]
[1769508242359,0.39979736,88000.0,87991.0,0.01136479]
[1769508242574,0.04242728,87999.0,87976.0,0.01136673]
[1769508242786,0.04242728,87999.0,87955.0,0.28461122]
[1769508242787,0.02447542,87988.0,87965.0,0.02411789]
[1769508243020,0.000373,87999.0,87960.0,0.33869536]
[1769508243021,0.000373,87999.0,87977.0,0.056833]
[1769508243238,0.39825362,87995.0,87977.0,0.056833]
[1769508243442,0.02447542,87994.0,87978.0,0.0681988]
[1769508243695,0.39825362,87993.0,87975.0,0.05683432]
[1769508243900,0.42272904,87991.0,87977.0,0.06819951]
[1769508244746,0.42291554,87991.0,87977.0,0.06819951]
[1769508244999,0.42291554,87991.0,87976.0,0.01136673]
[1769508245204,0.42291554,87991.0,87977.0,0.0113666]
[1769508245634,0.42291554,87991.0,87978.0,0.01136647]
[1769508245813,0.42291554,87991.0,87978.0,0.06819862]
[1769508246021,0.46642741,87991.0,87978.0,0.06819862]
[1769508246334,0.46642741,87991.0,87978.0,0.01136647]
[1769508246741,0.46642741,87991.0,87979.0,0.01136634]
[1769508246957,0.46642741,87991.0,87978.0,0.06819882]
[1769508247173,0.46642741,87991.0,87979.0,0.01136634]
[1769508247710,0.46642741,87991.0,87978.0,0.01136647]
[1769508247917,0.46642741,87991.0,87977.0,0.0113666]
[1769508248107,0.00154374,87990.0,87977.0,0.0113666]
[1769508248245,0.00154374,87990.0,87978.0,0.01136647]
[1769508248672,0.00173024,87990.0,87979.0,0.01136634]
[1769508248911,0.00173024,87990.0,87980.0,0.01136621]
[1769508249541,0.00173024,87990.0,87981.0,0.01136609]
[1769508249770,0.00173024,87990.0,87981.0,0.06819643]
[1769508250167,0.00173024,87990.0,87981.0,0.01136609]
[1769508250582,0.00173024,87990.0,87982.0,0.01136596]
[1769508250826,0.0001865,87990.0,87981.0,0.06819642]
[1769508251136,0.0001865,87990.0,87982.0,0.01136596]
[1769508251805,0.0001865,87990.0,87983.0,0.01136583]
[1769508251987,0.0001865,87990.0,87982.0,0.01136596]
[1769508252189,0.0001865,87990.0,87981.0,0.05678505]
[1769508253520,0.0001865,87990.0,87982.0,0.06819561]
[1769508253742,0.0001865,87990.0,87982.0,0.01136596]
[1769508254544,0.0001865,87990.0,87982.0,0.06819532]
[1769508254688,0.0001865,87990.0,87982.0,0.06819564]
[1769508254689,0.00173024,87990.0,87982.0,0.06819564]
[1769508254889,0.00173024,87990.0,87982.0,0.01136596]
[1769508255319,0.00173024,87990.0,87983.0,0.01136583]
[1769508256910,0.00173024,87990.0,87982.0,0.06819573]
[1769508257114,0.00173024,87990.0,87983.0,0.01136583]
[1769508257301,0.00173024,87990.0,87983.0,0.06819493]
[1769508257479,0.0001865,87990.0,87985.0,0.01136557]
[1769508257736,0.0001865,87990.0,87985.0,0.06819339]
[1769508257943,0.0001865,87990.0,87986.0,0.01136544]
[1769508258144,0.00173024,87998.0,87992.0,0.05682311]
[1769508258145,0.0001865,87998.0,87992.0,0.05682311]
[1769508258355,0.0001865,87998.0,87992.0,0.06818769]
[1769508258565,0.0001865,87998.0,87995.0,0.01136428]
[1769508258729,0.0002705,88008.0,88001.0,0.0113635]
[1769508258966,0.0002705,88008.0,88000.0,0.01136363]
[1769508259172,0.0002705,88008.0,87999.0,0.01136376]
[1769508259345,0.0002705,88008.0,87997.0,0.01136402]
[1769508259547,0.02474592,88008.0,87998.0,0.01136389]
[1769508259868,0.02474592,88008.0,87999.0,0.05681881]
[1769508260086,0.00154374,88007.0,87995.0,0.01136428]
[1769508260274,0.00154374,88007.0,87996.0,0.01136415]
[1769508260275,0.02612073,88006.0,87996.0,0.01136415]
[1769508260447,0.00154374,88005.0,87997.0,0.01136402]
[1769508260630,0.00154374,88005.0,87996.0,0.06818473]
[1769508261305,0.00154374,88005.0,87989.0,0.01136505]
[1769508261502,0.02766447,88005.0,87993.0,0.01136454]
[1769508261925,0.02766447,88005.0,87994.0,0.01136441]
[1769508262128,0.02766447,88005.0,87995.0,0.01136428]
[1769508262956,0.02766447,88005.0,87994.0,0.06818614]
[1769508262957,0.02766447,88005.0,87994.0,0.01136441]
[1769508264222,0.02766447,88005.0,87995.0,0.01136428]
[1769508264436,0.02766447,88005.0,87994.0,0.06818642]
[1769508264647,0.02766447,88005.0,87995.0,0.01136428]
[1769508266393,0.02766447,88005.0,87994.0,0.06818642]
[1769508266547,0.02766447,88005.0,87995.0,0.01136428]
[1769508266971,0.02766447,88005.0,87996.0,0.01136415]
[1769508267172,0.02766447,88005.0,87997.0,0.06818379]
[1769508267374,0.02612073,88005.0,87998.0,0.01136389]
[1769508267582,0.00154374,88004.0,87996.0,0.01136415]
[1769508267795,0.00154374,88004.0,87997.0,0.06818401]
[1769508268018,0.0002705,88008.0,87998.0,0.01136389]
[1769508268170,0.0002705,88008.0,88000.0,0.05681785]
[1769508268372,0.0002705,88008.0,88000.0,0.01136363]
[1769508268573,0.0002705,88008.0,88001.0,0.0113635]
[1769508268773,0.0002705,88008.0,88000.0,0.01136363]
[1769508268971,0.0002705,88008.0,87998.0,0.01136389]
[1769508269377,0.04143008,88008.0,87996.0,0.06818384]
[1769508269983,0.04143008,88008.0,87997.0,0.01136402]
[1769508270193,0.04143008,88008.0,87998.0,0.01136389]
[1769508270398,0.04143008,88008.0,87997.0,0.0681841]
[1769508270581,0.04143008,88008.0,87998.0,0.01136389]
[1769508270776,0.04395201,88007.0,87995.0,0.06818525]
[1769508271141,0.04403302,88005.0,87995.0,0.06818525]
[1769508271350,0.00154374,88004.0,87995.0,0.06818525]
[1769508272362,0.00154374,88004.0,87993.0,0.01136454]
[1769508272896,0.00154374,88004.0,87994.0,0.0681862]
[1769508273532,0.00154374,88004.0,87995.0,0.01136428]
[1769508274583,0.00154374,88004.0,87993.0,0.01136454]
[1769508274795,0.00154374,88004.0,87994.0,0.01136441]
[1769508275089,0.00154374,88004.0,87987.0,0.01136531]
[1769508275331,0.05078056,88001.0,87991.0,0.06818848]
[1769508275538,0.00154374,88000.0,87991.0,0.06818848]
[1769508275744,0.00154374,88000.0,87992.0,0.01136466]
[1769508275925,0.00154374,88000.0,87991.0,0.06818848]
[1769508276141,0.00154374,88000.0,87992.0,0.01136466]
[1769508276562,0.00154374,88000.0,87991.0,0.06818841]
[1769508276792,0.00154374,88000.0,87992.0,0.01136466]
[1769508277012,0.00154374,88000.0,87992.0,0.06818796]
[1769508277229,0.00154374,88000.0,87994.0,0.01136441]
[1769508277447,0.00154374,88000.0,87996.0,0.01136415]
[1769508277915,0.00154374,88000.0,87992.0,0.01136466]
[1769508278155,0.00154374,88000.0,87991.0,0.01136479]
[1769508278853,0.00154374,88000.0,87991.0,0.06818874]
[1769508279110,0.00154374,88000.0,87992.0,0.01136466]
[1769508279314,0.00154374,88000.0,87992.0,0.06818775]
[1769508279491,0.00154374,88000.0,87992.0,0.0681879]
[1769508279701,0.00154374,88000.0,87993.0,0.06818701]
[1769508279852,0.00154374,88000.0,87994.0,0.01136441]
[1769508280050,0.00154374,88000.0,87995.0,0.01136428]
[1769508280665,0.00154374,88000.0,87995.0,0.06818565]
[1769508280888,0.00154374,88000.0,87995.0,0.01136428]
[1769508281044,0.00154374,88000.0,87996.0,0.01136415]
[1769508281686,0.00154374,88000.0,87995.0,0.06818549]
[1769508281687,0.00154374,88000.0,87994.0,0.01136441]
[1769508281921,0.00154374,88000.0,87995.0,0.01136428]
[1769508284275,0.00154374,88000.0,87994.0,0.01136441]
[1769508284431,0.00154374,88000.0,87994.0,0.06818626]
[1769508284842,0.00154374,88000.0,87995.0,0.01136428]
[1769508285279,0.00154374,88000.0,87994.0,0.06818626]
[1769508286025,0.00154374,88000.0,87993.0,0.0681871]
[1769508286431,0.00154374,88000.0,87994.0,0.01136441]
[1769508287729,0.00154374,88000.0,87993.0,0.0681871]
[1769508288689,0.00154374,88000.0,87991.0,0.06818846]
[1769508288904,0.00154374,88000.0,87993.0,0.01136454]
[1769508289105,0.00154374,88000.0,87993.0,0.06818669]
[1769508289309,0.00154374,88000.0,87993.0,0.01136454]
[1769508289770,0.00154374,88000.0,87994.0,0.01136441]
[1769508289981,0.00154374,88000.0,87991.0,0.01136479]
[1769508290163,0.00154374,88000.0,87989.0,0.0568252]
[1769508290164,0.00154374,88000.0,87987.0,0.06819173]
[1769508290322,0.00154374,88000.0,87988.0,0.01136518]
[1769508290526,0.00154374,88000.0,87988.0,0.06819101]
[1769508290732,0.00154374,88000.0,87987.0,0.0681918]
[1769508291139,0.40473765,87998.0,87982.0,0.01136596]
[1769508291351,0.40473765,87994.0,87982.0,0.06819553]
[1769508291552,0.05977721,87993.0,87983.0,0.01136583]
[1769508291687,0.05977721,87993.0,87982.0,0.01136596]
[1769508292240,0.05977721,87993.0,87976.0,0.4180287]
[1769508292393,0.40473765,87989.0,87978.0,0.01136647]
[1769508292620,0.05977721,87988.0,87978.0,0.01136647]
[1769508292832,0.05977721,87988.0,87979.0,0.01136634]
[1769508293203,0.05977721,87988.0,87980.0,0.01136621]
[1769508293407,0.05977721,87988.0,87979.0,0.06819806]
[1769508293829,0.05977721,87988.0,87980.0,0.06819702]
[1769508294027,0.05977721,87988.0,87982.0,0.01136596]
[1769508294284,0.05977721,87988.0,87983.0,0.01136583]
[1769508294492,0.05977721,87988.0,87984.0,0.0113657]
[1769508294685,0.05977721,87988.0,87984.0,0.00848416]
[1769508295276,0.05977721,87988.0,87985.0,0.01136557]
[1769508295511,0.0002705,88008.0,87987.0,0.01136531]
[1769508295512,0.057528,87996.0,87987.0,0.01136531]
[1769508295727,0.057528,88003.0,87990.0,0.01136492]
[1769508295934,0.17108036,88002.0,87990.0,0.40690248]
[1769508296163,0.17108036,88002.0,87991.0,0.01136479]
[1769508296164,0.057528,88002.0,87991.0,0.01136479]
[1769508296383,0.057528,88002.0,87990.0,0.33871319]
[1769508296596,0.057528,88002.0,87991.0,0.01136479]
[1769508296896,0.057528,88002.0,87988.0,0.01136518]
[1769508296897,0.00154374,88001.0,87988.0,0.05678056]
[1769508297115,0.057528,88000.0,87985.0,0.05678313]
[1769508297302,0.05907174,87999.0,87986.0,0.03495832]
[1769508297529,0.05907174,87999.0,87986.0,0.04632376]
[1769508298350,0.05907174,87999.0,87987.0,0.00474084]
[1769508299344,0.05907174,87999.0,87987.0,0.01610615]
[1769508299747,0.05907174,87999.0,87988.0,0.01136518]
[1769508300698,0.05907174,87999.0,87987.0,0.07293245]
[1769508300699,0.05907174,87999.0,87987.0,0.01610615]
[1769508301058,0.05907174,87999.0,87987.0,0.00474084]
[1769508301280,0.05907174,87999.0,87988.0,0.01136518]
[1769508301484,0.05907174,87999.0,87987.0,0.00474084]
[1769508301694,0.057528,87999.0,87988.0,0.01136518]
[1769508302249,0.057528,87999.0,87988.0,0.06819106]
[1769508302869,0.057528,87999.0,87989.0,0.01136505]
[1769508303260,0.057528,87999.0,87988.0,0.07293178]
[1769508303417,0.057528,87999.0,87989.0,0.01136505]
[1769508304426,0.057528,87999.0,87988.0,0.07293178]
[1769508304617,0.057528,87999.0,87989.0,0.01136505]
[1769508304997,0.057528,87999.0,87988.0,0.07293178]
[1769508305161,0.057528,87999.0,87988.0,0.0161059]
[1769508305364,0.057528,87999.0,87989.0,0.01136505]
[1769508306119,0.057528,87999.0,87988.0,0.07293158]
[1769508306644,0.00154374,87998.0,87989.0,0.01136505]
[1769508307348,0.00154374,87998.0,87990.0,0.01136492]
[1769508307486,0.057528,87999.0,87990.0,0.01136492]
[1769508307896,0.057528,87999.0,87989.0,0.06819014]
[1769508308583,0.057528,87999.0,87990.0,0.01136492]
[1769508308960,0.057528,87999.0,87991.0,0.01136479]
[1769508309170,0.057528,87999.0,87990.0,0.06818943]
[1769508309572,0.057528,87999.0,87991.0,0.06818867]
[1769508309970,0.03244428,88008.0,87998.0,0.06818289]
[1769508310174,0.03244428,88008.0,87998.0,0.01136389]
[1769508310175,0.11352842,88007.0,87998.0,0.01136389]
[1769508310500,0.03244428,88008.0,87998.0,0.06818334]
[1769508310828,0.11353314,88007.0,87998.0,0.01136389]
[1769508311035,0.03244428,88008.0,87995.0,0.46254983]
[1769508311244,0.11507676,88007.0,87995.0,0.01136428]
[1769508311452,0.11507676,88007.0,87993.0,0.01136454]
[1769508311453,0.00154374,88007.0,87993.0,0.01136454]
[1769508311662,0.14603223,88006.0,87994.0,0.01136441]
[1769508311868,0.00154374,88005.0,87994.0,0.01136441]
[1769508312311,0.00154374,88005.0,87994.0,0.06818641]
[1769508312501,0.00154374,88005.0,87995.0,0.06818543]
[1769508312705,0.03250044,88006.0,87996.0,0.01136415]
[1769508312853,0.07617187,88005.0,87997.0,0.01136402]
[1769508313718,0.07617187,88005.0,87998.0,0.01136389]
[1769508314922,0.07617187,88005.0,87997.0,0.06818378]
[1769508315136,0.07617187,88005.0,87998.0,0.01136389]
[1769508315336,0.07617187,88005.0,87996.0,0.01136415]
[1769508315495,0.00154374,88004.0,87995.0,0.01136428]
[1769508315897,0.00154374,88005.0,87995.0,0.06818566]
[1769508316096,0.00154374,88005.0,87996.0,0.01136415]
[1769508316510,0.00154374,88005.0,87995.0,0.01136428]
[1769508316675,0.00154374,88005.0,87995.0,0.0681855]
[1769508316873,0.03970298,88004.0,87992.0,0.01136466]
[1769508317076,0.03970298,88002.0,87989.0,0.06819002]
[1769508317366,0.00154374,88001.0,87990.0,0.01136492]
[1769508317580,0.03970298,88000.0,87990.0,0.01136492]
[1769508318456,0.03970298,88000.0,87991.0,0.01136479]
[1769508319113,0.03970298,88000.0,87994.0,0.01136441]
[1769508319317,0.03970298,88000.0,87995.0,0.01136428]
[1769508319766,0.04826231,88007.0,87997.0,0.01136402]
[1769508319969,0.19128311,88006.0,87999.0,0.01136376]
[1769508320215,0.11353505,88005.0,87999.0,0.01136376]
[1769508320432,0.04826231,88007.0,87999.0,0.01130682]
[1769508320433,0.0001414,88006.0,87999.0,0.01130682]
[1769508320640,0.0001414,88006.0,88000.0,0.06818158]
[1769508320879,0.0001414,88006.0,88002.0,0.01136337]
[1769508321076,0.0001414,88006.0,88001.0,0.0113635]
[1769508321294,0.0001414,88006.0,88000.0,0.01136363]
[1769508321749,0.0001414,88006.0,88002.0,0.06818001]
[1769508321963,0.0001414,88006.0,88004.0,0.05681518]
[1769508322171,0.0001483,88012.0,88004.0,0.05681518]
[1769508322172,0.0001483,88012.0,88005.0,0.01136299]
[1769508323618,0.0001483,88012.0,88006.0,0.05681386]
[1769508323828,0.0001483,88012.0,88007.0,0.01136273]
[1769508324694,0.0001483,88012.0,88008.0,0.0113626]
[1769508325479,0.0001483,88012.0,88007.0,0.06817627]
[1769508325691,0.0001483,88012.0,88008.0,0.0113626]
[1769508325895,0.0001483,88012.0,88011.0,0.05681108]
[1769508326096,0.0004,88015.0,88012.0,0.01136208]
[1769508326303,0.0004,88015.0,88013.0,0.0568092]
[1769508327129,0.0004,88015.0,88013.0,0.05680968]
[1769508327515,0.0004,88015.0,88012.0,0.06817248]
[1769508327960,0.0004,88015.0,88014.0,0.05680914]
[1769508328489,0.0001483,88021.0,88014.0,0.01136182]
[1769508329313,0.0001483,88021.0,88016.0,0.01136157]
[1769508329617,0.0597768,88020.0,88016.0,0.01136157]
[1769508329855,0.0597768,88020.0,88017.0,0.01136144]
[1769508330260,0.0597768,88020.0,88016.0,0.0568076]
[1769508330419,0.0597768,88020.0,88016.0,0.03403906]
[1769508330647,0.0597768,88020.0,88016.0,0.05680727]
[1769508330824,0.0597768,88020.0,88016.0,0.0340386]
[1769508331022,0.0597768,88020.0,88016.0,0.01425263]
[1769508331229,0.0597768,88020.0,88017.0,0.01136144]
[1769508331471,0.0597768,88020.0,88016.0,0.06816919]
[1769508331877,0.0597768,88020.0,88016.0,0.01136157]
[1769508332098,0.0597768,88020.0,88017.0,0.01136144]
[1769508332855,0.0597768,88020.0,88015.0,0.01136169]
[1769508333285,0.0597768,88020.0,88017.0,0.01136144]
[1769508333839,0.0597768,88020.0,88017.0,0.06816858]
[1769508334487,0.0597768,88020.0,88017.0,0.01085177]
[1769508334713,0.0001483,88021.0,88018.0,0.01136131]
[1769508334895,0.0001483,88021.0,88019.0,0.05680539]
[1769508335050,0.0001483,88021.0,88018.0,0.06816661]
[1769508335264,0.0001483,88021.0,88018.0,0.01136131]
[1769508335468,0.0001483,88021.0,88017.0,0.01136144]
[1769508335642,0.0001483,88021.0,88011.0,0.01136221]
[1769508336011,0.0001483,88021.0,88015.0,0.01136169]
[1769508336364,0.0001483,88021.0,88015.0,0.06816994]
[1769508336793,0.0001483,88021.0,88016.0,0.01136157]
[1769508337447,0.0001483,88021.0,88015.0,0.01136169]
[1769508337751,0.0001483,88021.0,88016.0,0.01136157]
[1769508338162,0.0001483,88021.0,88015.0,0.06817013]
[1769508338368,0.0001483,88021.0,88015.0,0.01136169]
[1769508338953,0.0001483,88021.0,88015.0,0.00837899]
[1769508339197,0.0001483,88021.0,88015.0,0.04789403]
[1769508339502,0.0001483,88021.0,88015.0,0.01136169]
[1769508341103,0.0001483,88021.0,88014.0,0.06817047]
[1769508341584,0.0001483,88021.0,88015.0,0.01136169]
[1769508342779,0.0001483,88021.0,88016.0,0.0568078]
[1769508342973,0.0001483,88021.0,88018.0,0.01136131]
[1769508343307,0.0001483,88021.0,88019.0,0.05680554]
[1769508343711,0.0001483,88021.0,88019.0,0.05680578]
[1769508343902,0.0001483,88021.0,88019.0,0.05680569]
[1769508344592,0.0001483,88021.0,88018.0,0.06816741]
[1769508344804,0.0001483,88021.0,88016.0,0.01136157]
[1769508344805,0.0001483,88021.0,88019.0,0.00299545]
[1769508345005,0.0001414,88019.0,88011.0,0.01136221]
[1769508345205,0.0001414,88019.0,88014.0,0.01136182]
[1769508345411,0.0001483,88021.0,88014.0,0.06817087]
[1769508345845,0.0001483,88021.0,88016.0,0.01136157]
[1769508346046,0.0001483,88021.0,88017.0,0.01136144]
[1769508346256,0.0001483,88021.0,88017.0,0.01103765]
[1769508346788,0.0001483,88021.0,88018.0,0.01136131]
[1769508347197,0.0001483,88021.0,88019.0,0.00254038]
[1769508348154,0.0001483,88021.0,88016.0,0.01136157]
[1769508348361,0.0001483,88021.0,88017.0,0.01136144]
[1769508348559,0.0001483,88021.0,88012.0,0.01136208]
[1769508348786,0.0001483,88021.0,88016.0,0.05680778]
[1769508349104,0.0001483,88021.0,88015.0,0.05680804]
[1769508349309,0.0001483,88021.0,88015.0,0.06817016]
[1769508349966,0.0001483,88021.0,88016.0,0.01136157]
[1769508350109,0.0001483,88021.0,88015.0,0.06816999]
[1769508350311,0.0001483,88021.0,88014.0,0.01136182]
[1769508350626,0.0001483,88021.0,88013.0,0.01136195]
[1769508350827,0.0001483,88021.0,88014.0,0.01136182]
[1769508351374,0.0001483,88021.0,88013.0,0.01136195]
[1769508351698,0.0001483,88021.0,88014.0,0.01136182]
[1769508352126,0.0001483,88021.0,88014.0,0.06817095]
[1769508352353,0.0001483,88021.0,88015.0,0.06817012]
[1769508352767,0.0001483,88021.0,88016.0,0.01136157]
[1769508353178,0.0001483,88021.0,88014.0,0.01136182]